bitfinex/quotes_SOLUSD_20220113
["timestamp","ask_amount","ask_price","bid_price","bid_amount"]
[1642040245822,43.9766,150.21,150.2,0.02]
[1642040247529,49.9766,150.21,150.2,0.02]
[1642040248227,43.9766,150.21,150.2,0.02]
[1642040248425,51.87837498,150.21,150.2,0.02]
[1642040256070,49.9766,150.21,150.2,0.02]
[1642040258467,51.87946846,150.21,150.2,0.02]
[1642040267077,27.64146846,150.21,150.2,0.02]
[1642040267278,25.7386,150.21,150.2,0.02]
[1642040268382,25.9986,150.21,150.2,0.02]
[1642040269109,27.80337668,150.21,150.2,0.02]
[1642040269811,25.9986,150.21,150.2,0.02]
[1642040270314,50.4932,150.21,150.2,0.02]
[1642040272414,28.0,150.2,150.13,2.662]
[1642040272614,9.9919,150.17,150.12,2.662]
[1642040272815,9.9919,150.17,150.11,2.662]
[1642040273016,0.26,150.16,150.11,2.662]
[1642040273414,0.51,150.17,150.11,2.662]
[1642040273615,6.51,150.17,150.11,2.662]
[1642040273815,0.51,150.17,150.11,2.662]
[1642040274013,6.51,150.17,150.11,2.662]
[1642040274214,0.51,150.17,150.11,2.662]
[1642040274814,9.9922,150.16,150.11,2.662]
[1642040275015,0.26,150.15,150.11,2.662]
[1642040276316,10.2525,150.15,150.1,79.7359]
[1642040276716,10.5025,150.15,150.1,79.7359]
[1642040277117,10.5025,150.15,150.09,2.664]
[1642040278119,9.9925,150.15,150.09,2.914]
[1642040278322,12.164,150.17,150.1,0.26]
[1642040278619,12.164,150.17,150.11,2.664]
[1642040278918,12.164,150.17,150.12,0.26]
[1642040279120,12.164,150.17,150.13,2.664]
[1642040279520,12.164,150.17,150.13,2.914]
[1642040279720,2.664,150.17,150.13,12.9019]
[1642040280020,2.664,150.17,150.13,2.914]
[1642040280226,2.664,150.17,150.13,2.664]
[1642040281023,2.664,150.17,150.13,2.914]
[1642040285127,9.9899,150.19,150.13,2.914]
[1642040285328,9.7499,150.19,150.13,27.0942]
[1642040285530,0.25,150.19,150.14,6.26]
[1642040285731,1.87877289,150.21,150.15,2.662]
[1642040285930,1.87877289,150.21,150.16,0.26]
[1642040286329,1.87877289,150.21,150.15,26.185]
[1642040286731,0.26,150.2,150.15,26.185]
[1642040286930,0.26,150.2,150.15,23.523]
[1642040287331,0.26,150.21,150.15,23.523]
[1642040288735,0.26,150.21,150.1,81.57959827]
[1642040288736,9.5,150.2,150.1,81.57959827]
[1642040288934,0.26,150.19,150.11,24.1159]
[1642040289137,12.164,150.18,150.1,78.91759827]
[1642040289338,12.164,150.18,150.1,77.1725]
[1642040289536,6.26,150.17,150.1,77.1725]
[1642040289736,8.31477668,150.17,150.1,77.1725]
[1642040290135,1.80477668,150.16,150.1,77.1725]
[1642040290540,12.04677668,150.16,150.1,77.1725]
[1642040291137,12.04677668,150.16,150.1,77.4225]
[1642040291336,12.04677668,150.16,150.1,80.0865]
[1642040292337,10.242,150.16,150.1,80.0865]
[1642040292738,0.26,150.15,150.1,80.0865]
[1642040294343,10.242,150.16,150.1,80.0865]
[1642040294545,10.242,150.16,150.11,0.26]
[1642040294743,7.992,150.16,150.12,2.664]
[1642040294945,0.25,150.16,150.12,2.664]
[1642040295245,19.4909,150.18,150.12,2.664]
[1642040295464,6.0,150.17,150.12,2.664]
[1642040295664,15.5,150.17,150.12,2.664]
[1642040296071,19.4912,150.17,150.11,2.664]
[1642040296368,19.7412,150.17,150.11,2.664]
[1642040296569,6.26,150.16,150.11,2.664]
[1642040296770,6.51,150.16,150.11,2.664]
[1642040297973,16.5021,150.16,150.11,2.664]
[1642040299775,10.5021,150.16,150.11,2.664]
[1642040299974,6.0,150.15,150.11,2.664]
[1642040300176,6.0,150.15,150.1,103.0971]
[1642040300875,6.0,150.15,150.1,100.4331]
[1642040302474,6.25,150.15,150.1,100.4331]
[1642040303575,16.2427,150.15,150.08,2.664]
[1642040303775,0.26,150.14,150.08,27.3099]
[1642040303980,6.26,150.14,150.08,27.3099]
[1642040304176,0.26,150.14,150.08,27.3099]
[1642040304580,6.26,150.14,150.08,27.5599]
[1642040304977,6.26,150.14,150.08,27.3099]
[1642040305581,0.26,150.14,150.08,27.3099]
[1642040305777,0.26,150.14,150.08,27.5599]
[1642040306378,10.2427,150.15,150.09,0.26]
[1642040306580,10.2427,150.15,150.1,2.664]
[1642040306979,9.5,150.17,150.11,0.26]
[1642040307279,9.5,150.17,150.12,2.664]
[1642040307480,9.5,150.17,150.13,0.26]
[1642040308280,9.5,150.17,150.12,2.664]
[1642040308479,9.75,150.17,150.12,2.664]
[1642040309682,19.7411,150.17,150.12,2.664]
[1642040309881,19.7411,150.17,150.11,2.664]
[1642040310283,19.7411,150.17,150.11,2.914]
[1642040310485,6.0,150.16,150.11,2.914]
[1642040312082,0.25,150.17,150.11,2.914]
[1642040312282,6.51,150.18,150.11,2.914]
[1642040312683,10.5005,150.18,150.11,2.914]
[1642040313587,6.0,150.17,150.11,2.914]
[1642040313786,0.25,150.17,150.11,2.914]
[1642040313987,6.25,150.17,150.11,2.914]
[1642040314187,0.25,150.17,150.11,2.914]
[1642040314488,6.25,150.17,150.11,2.914]
[1642040314788,0.25,150.17,150.11,2.914]
[1642040314988,10.5005,150.18,150.11,2.914]
[1642040316095,10.2505,150.18,150.11,2.914]
[1642040316294,11.64263437,150.18,150.11,2.664]
[1642040316496,19.96877668,150.17,150.08,1.90147957]
[1642040316694,9.9939,150.13,150.08,1.90147957]
[1642040317494,6.0,150.12,150.08,1.90147957]
[1642040317695,0.25,150.12,150.08,1.90147957]
[1642040317895,0.25,150.12,150.06,100.37267957]
[1642040318299,10.5045,150.12,150.06,4.56547957]
[1642040318497,16.5045,150.12,150.06,4.56547957]
[1642040318698,19.1695,150.12,150.06,4.56547957]
[1642040319396,19.1695,150.12,150.05,1.90147957]
[1642040319896,19.1695,150.12,150.04,2.665]
[1642040320097,19.1695,150.12,150.04,26.1856]
[1642040320299,19.1695,150.12,150.04,26.4356]
[1642040320802,19.1695,150.12,150.04,26.1856]
[1642040321619,19.1695,150.12,150.04,23.5206]
[1642040321820,9.5,150.11,150.04,23.5206]
[1642040322020,8.925,150.1,150.04,23.5206]
[1642040322220,9.9972,150.08,150.04,23.5206]
[1642040322620,10.2472,150.08,150.04,23.5206]
[1642040323022,10.2472,150.08,150.02,2.665]
[1642040324528,6.0,150.07,150.02,2.665]
[1642040324724,0.25,150.07,150.02,2.665]
[1642040324925,6.25,150.07,150.02,2.665]
[1642040325126,6.0,150.06,150.02,2.665]
[1642040325424,0.25,150.07,150.04,0.02]
[1642040325425,10.2478,150.07,150.04,0.02]
[1642040325625,2.99851018,150.06,150.04,0.02]
[1642040325825,2.74851018,150.06,150.04,0.02]
[1642040326028,2.99851018,150.06,150.04,0.02]
[1642040326225,2.74851018,150.06,150.04,0.02]
[1642040328629,2.99851018,150.06,150.04,0.02]
[1642040329427,0.26,150.05,150.04,0.02]
[1642040329828,0.26,150.05,150.04,3.05219996]
[1642040330029,0.26,150.05,150.04,0.02]
[1642040330830,10.2594,150.05,150.04,0.02]
[1642040331031,10.5094,150.05,150.04,0.02]
[1642040331533,16.5094,150.05,150.04,0.02]
[1642040331930,10.5094,150.05,150.04,0.02]
[1642040334131,16.5094,150.05,150.04,0.02]
[1642040335232,26.0094,150.05,150.04,0.02]
[1642040344344,25.7494,150.05,150.04,0.02]
[1642040344642,19.7494,150.05,150.04,0.02]
[1642040344846,19.4994,150.05,150.04,0.02]
[1642040346146,19.7494,150.05,150.04,0.02]
[1642040346549,20.0094,150.05,150.04,0.02]
[1642040346744,26.0094,150.05,150.04,0.02]
[1642040347447,20.0094,150.05,150.04,0.02]
[1642040347646,26.0094,150.05,150.04,0.02]
[1642040347876,20.0094,150.05,150.04,0.02]
[1642040350581,26.0094,150.05,150.04,0.02]
[1642040380351,25.4994,150.05,150.04,0.02]
[1642040380552,19.4994,150.05,150.04,0.02]
[1642040382054,19.7494,150.05,150.04,0.02]
[1642040382453,20.0094,150.05,150.04,0.02]
[1642040387090,26.0094,150.05,150.04,0.02]
[1642040387893,20.0094,150.05,150.04,0.02]
[1642040388090,20.0094,150.05,150.04,23.02]
[1642040388291,20.0094,150.05,150.04,26.33588975]
[1642040388490,10.01,150.05,150.04,26.33588975]
[1642040389295,10.01,150.05,150.04,3.33588975]
[1642040389496,10.01,150.05,150.04,0.02]
[1642040390896,20.0092,150.05,150.04,0.02]
[1642040391898,22.75771018,150.05,150.04,0.02]
[1642040392398,22.49771018,150.05,150.04,0.02]
[1642040393999,22.75771018,150.05,150.04,0.02]
[1642040396303,30.56248686,150.05,150.04,0.02]
[1642040397501,28.75771018,150.05,150.04,0.02]
[1642040398102,31.42271018,150.05,150.04,0.02]
[1642040399306,28.75771018,150.05,150.04,0.02]
[1642040406548,22.75771018,150.05,150.04,0.02]
[1642040406952,28.75771018,150.05,150.04,0.02]
[1642040413158,30.56248686,150.05,150.04,0.02]
[1642040415455,27.81397668,150.05,150.04,3.05219996]
[1642040415657,25.4992,150.05,150.04,0.02]
[1642040416855,25.7592,150.05,150.04,0.02]
[1642040417657,26.0092,150.05,150.04,0.02]
[1642040419459,28.75771018,150.05,150.04,0.02]
[1642040424663,28.50771018,150.05,150.04,0.02]
[1642040425065,22.50771018,150.05,150.04,3.05219996]
[1642040425265,25.7592,150.05,150.04,3.33588975]
[1642040425969,26.0092,150.05,150.04,3.33588975]
[1642040426769,26.0092,150.05,150.04,0.02]
[1642040426970,27.81397668,150.05,150.04,0.02]
[1642040428673,30.56248686,150.05,150.04,0.02]
[1642040429174,28.75771018,150.05,150.04,0.02]
[1642040435002,28.49771018,150.05,150.04,0.02]
[1642040435202,22.49771018,150.05,150.04,0.02]
[1642040435405,28.49771018,150.05,150.04,0.02]
[1642040435802,22.49771018,150.05,150.04,0.02]
[1642040436505,22.75771018,150.05,150.04,0.02]
[1642040437103,28.75771018,150.05,150.04,0.02]
[1642040444618,28.50771018,150.05,150.04,0.02]
[1642040446519,28.75771018,150.05,150.04,0.02]
[1642040448823,28.49771018,150.05,150.04,0.02]
[1642040450051,28.75771018,150.05,150.04,0.02]
[1642040452953,25.7592,150.05,150.04,3.05219996]
[1642040453353,25.7592,150.05,150.04,0.02]
[1642040454153,28.6742,150.05,150.04,0.02]
[1642040455656,30.56969653,150.05,150.04,0.02]
[1642040456755,28.6742,150.05,150.04,0.02]
[1642040456959,31.42271018,150.05,150.04,0.02]
[1642040457358,28.75771018,150.05,150.04,0.02]
[1642040459065,28.49771018,150.05,150.04,0.02]
[1642040459665,30.39320671,150.05,150.04,0.02]
[1642040460463,28.75771018,150.05,150.04,0.02]
[1642040461264,95.57771018,150.05,149.98,2.665]
[1642040461464,2.926,150.04,149.98,2.665]
[1642040461665,10.004,150.01,149.98,2.665]
[1642040461864,9.5,150.0,149.98,2.665]
[1642040462064,9.76,150.0,149.98,2.665]
[1642040462272,10.01,150.0,149.98,2.665]
[1642040462665,9.76,150.0,149.98,2.665]
[1642040463572,9.76,150.0,149.94,2.666]
[1642040463766,9.76,150.0,149.94,2.916]
[1642040464564,9.76,150.0,149.94,2.666]
[1642040464765,9.76,150.0,149.94,2.916]
[1642040464968,19.7625,150.0,149.94,2.916]
[1642040465165,19.5025,150.0,149.94,2.916]
[1642040465666,19.7525,150.0,149.94,2.916]
[1642040466466,0.26,149.99,149.94,2.916]
[1642040466667,10.2634,149.99,149.94,2.916]
[1642040466868,10.2634,149.99,149.94,2.666]
[1642040467067,10.2634,149.99,149.94,2.916]
[1642040467469,10.2634,149.99,149.94,2.666]
[1642040467668,10.5134,149.99,149.93,25.12287957]
[1642040467899,20.0134,149.99,149.93,25.12287957]
[1642040468467,20.0134,149.99,149.93,1.90147957]
[1642040468667,20.0134,149.99,149.91,4.56747957]
[1642040468868,20.0134,149.99,149.91,27.62227957]
[1642040469869,20.0134,149.99,149.92,0.26]
[1642040470074,10.2634,149.99,149.92,0.26]
[1642040472172,10.2634,149.99,149.92,2.16147957]
[1642040472370,10.2634,149.99,149.93,2.666]
[1642040472871,10.5134,149.99,149.93,2.666]
[1642040473272,10.0061,149.96,149.93,2.666]
[1642040473472,10.0061,149.96,149.92,1.90147957]
[1642040473473,0.26,149.95,149.92,1.90147957]
[1642040473672,2.74851018,149.94,149.92,2.15147957]
[1642040474074,2.74851018,149.94,149.91,2.666]
[1642040474273,2.74851018,149.94,149.9,1.90147957]
[1642040474474,12.75501018,149.94,149.9,1.90147957]
[1642040475412,16.0075,149.93,149.9,0.25]
[1642040475574,10.0075,149.93,149.9,0.25]
[1642040475773,6.0,149.92,149.89,98.01947957]
[1642040475975,6.0,149.92,149.9,3.31588975]
[1642040476178,6.0,149.92,149.9,3.56588975]
[1642040476576,10.0075,149.93,149.9,3.56588975]
[1642040477379,0.26,149.92,149.9,3.56588975]
[1642040478879,10.0075,149.93,149.9,3.56588975]
[1642040479083,2.668,149.97,149.91,24.71276344]
[1642040479383,0.25,149.97,149.91,24.96276344]
[1642040479580,6.0,149.99,149.91,24.71276344]
[1642040479780,6.0,149.99,149.92,2.666]
[1642040479980,6.0,149.99,149.91,24.96276344]
[1642040480185,6.0,149.99,149.92,23.5932]
[1642040480381,16.0042,149.99,149.92,23.5932]
[1642040480584,16.0042,149.99,149.92,23.8432]
[1642040480981,16.2542,149.99,149.92,23.8432]
[1642040481382,0.26,149.98,149.92,23.8432]
[1642040481584,10.2644,149.98,149.92,26.5092]
[1642040482282,10.5144,149.98,149.92,26.5092]
[1642040487612,20.0144,149.98,149.92,26.5092]
[1642040490717,20.0144,149.98,149.92,23.5932]
[1642040490915,10.01,149.98,149.92,23.5932]
[1642040491515,9.76,149.98,149.92,23.5932]
[1642040491716,9.76,149.98,149.92,26.2592]
[1642040491915,9.76,149.98,149.92,26.5092]
[1642040492315,9.76,149.98,149.92,26.2592]
[1642040492917,9.76,149.98,149.92,33.5962]
[1642040493118,9.76,149.98,149.92,33.8462]
[1642040493517,9.76,149.98,149.92,23.8432]
[1642040494122,9.76,149.98,149.92,23.5932]
[1642040494320,9.76,149.98,149.92,23.8432]
[1642040496822,9.76,149.98,149.92,23.5932]
[1642040497023,19.7644,149.98,149.92,23.5932]
[1642040500728,9.76,149.98,149.92,23.8432]
[1642040501530,9.76,149.98,149.92,23.5932]
[1642040501830,10.01,149.98,149.92,23.8432]
[1642040502030,10.01,149.98,149.92,23.5932]
[1642040502232,10.01,149.98,149.92,23.8432]
[1642040502431,9.75,149.98,149.93,0.26]
[1642040502632,0.25,149.98,149.93,8.926]
[1642040502931,4.56149653,150.02,149.93,8.926]
[1642040503129,1.89549653,150.02,149.94,23.7357]
[1642040503330,1.89549653,150.02,149.95,2.666]
[1642040503532,1.89549653,150.02,149.95,8.926]
[1642040503732,1.89549653,150.02,149.95,9.176]
[1642040504133,0.25,150.02,149.95,9.176]
[1642040504533,0.26,150.02,149.95,8.666]
[1642040504734,8.926,150.02,149.94,33.7368]
[1642040504934,32.7212,150.02,149.94,23.9857]
[1642040505134,32.9712,150.02,149.94,23.9857]
[1642040505736,42.973,150.02,149.94,23.9857]
[1642040505936,40.057,150.02,149.95,2.666]
[1642040506137,40.057,150.02,149.95,2.916]
[1642040507137,40.307,150.02,149.95,2.916]
[1642040509039,34.307,150.02,149.95,2.916]
[1642040509262,34.047,150.02,149.95,2.916]
[1642040510463,0.26,150.01,149.95,2.916]
[1642040511862,0.26,150.01,149.95,2.666]
[1642040512064,16.2623,150.01,149.95,2.666]
[1642040512264,9.5,150.0,149.95,2.666]
[1642040512462,0.26,149.99,149.94,23.7357]
[1642040513462,10.2637,149.99,149.94,23.7357]
[1642040513665,10.5137,149.99,149.94,23.7357]
[1642040514463,10.5137,149.99,149.92,77.5154]
[1642040514667,15.5,149.98,149.92,74.8494]
[1642040514864,25.5045,149.98,149.92,74.8494]
[1642040515065,0.26,149.97,149.92,75.0994]
[1642040515464,0.26,149.97,149.92,74.8494]
[1642040515666,0.26,149.97,149.92,75.0994]
[1642040515866,0.26,149.97,149.92,74.8494]
[1642040519672,10.265,149.97,149.92,74.8494]
[1642040521975,0.26,149.97,149.92,74.8494]
[1642040522776,0.26,149.97,149.92,75.0994]
[1642040523380,0.26,149.97,149.92,74.8494]
[1642040524080,0.26,149.97,149.92,75.0994]
[1642040524784,0.26,149.97,149.92,74.8494]
[1642040524982,9.5,149.98,149.93,0.26]
[1642040525182,33.3267,150.0,149.93,0.26]
[1642040525183,9.5,150.0,149.94,29.95178975]
[1642040525381,9.5,150.0,149.95,0.26]
[1642040525582,6.0,149.99,149.95,0.26]
[1642040525782,9.5,150.0,149.95,0.26]
[1642040525982,9.5,150.0,149.94,30.20178975]
[1642040526183,9.75,150.0,149.94,30.20178975]
[1642040529615,9.5,150.0,149.95,2.666]
[1642040530015,9.5,150.0,149.95,2.916]
[1642040530816,9.5,150.0,149.96,0.26]
[1642040531017,9.5,150.03,149.96,0.26]
[1642040532517,9.5,150.03,149.96,16.2598]
[1642040532717,9.5,150.03,149.96,83.3298]
[1642040533920,9.5,150.03,149.97,2.666]
[1642040534122,9.5,150.03,150.0,9.9974]
[1642040534323,1.89549653,150.07,150.01,2.666]
[1642040534523,1.89549653,150.07,150.02,6.26]
[1642040534722,1.89549653,150.08,150.03,2.665]
[1642040534925,1.89549653,150.08,150.04,27.15948498]
[1642040535122,1.89549653,150.08,150.05,2.665]
[1642040535321,1.89549653,150.08,150.05,2.925]
[1642040535525,1.89549653,150.08,150.05,2.915]
[1642040535724,13.29099305,150.11,150.06,3.31588975]
[1642040535926,2.925,150.1,150.06,3.31588975]
[1642040536123,0.26,150.1,150.06,3.31588975]
[1642040536724,9.5,150.09,150.06,3.31588975]
[1642040536927,2.74851018,150.08,150.03,22.8365]
[1642040537126,2.74851018,150.08,150.03,23.0865]
[1642040538830,2.74851018,150.08,150.03,0.25]
[1642040539031,0.26,150.07,150.03,0.25]
[1642040539230,0.26,150.07,149.99,72.4372]
[1642040539432,2.926,150.07,150.0,24.7715]
[1642040539833,3.176,150.07,150.0,25.0215]
[1642040540034,15.9992,150.06,150.0,25.0215]
[1642040540236,16.2492,150.06,150.0,25.0215]
[1642040540436,0.26,150.05,150.0,25.0215]
[1642040541236,10.2598,150.05,150.0,25.0215]
[1642040542334,10.2598,150.05,150.0,22.5867675]
[1642040542935,10.2598,150.05,150.0,22.3367675]
[1642040543135,20.0098,150.05,149.97,2.665]
[1642040543336,22.6758,150.05,149.97,27.3313]
[1642040543536,22.6758,150.05,149.97,27.5813]
[1642040545438,20.0098,150.05,149.97,27.5813]
[1642040546870,20.0098,150.05,149.97,37.5809]
[1642040547270,20.0098,150.05,149.98,6.0]
[1642040547671,20.0098,150.05,149.98,6.25]
[1642040548874,10.5098,150.05,149.98,6.25]
[1642040549776,9.5,150.04,149.98,6.25]
[1642040550077,0.26,150.03,149.98,6.25]
[1642040560190,0.26,150.03,149.99,2.666]
[1642040560693,0.26,150.03,149.99,2.916]
[1642040562193,0.26,150.03,149.99,2.666]
[1642040565719,0.26,150.03,149.98,8.666]
[1642040566317,0.26,150.03,149.98,8.916]
[1642040568221,0.26,150.03,149.98,6.25]
[1642040571123,0.26,150.03,149.98,6.0]
[1642040572631,0.26,150.03,149.98,6.25]
[1642040573729,0.26,150.03,149.98,0.25]
[1642040573930,0.26,150.03,149.97,27.5823]
[1642040576132,0.26,150.03,149.97,2.916]
[1642040576333,9.5,150.02,149.97,2.666]
[1642040576534,6.26,150.01,149.96,1.90147957]
[1642040576737,6.26,150.01,149.95,1.90147957]
[1642040577433,16.2626,150.01,149.95,1.90147957]
[1642040577634,16.2626,150.01,149.95,26.19567957]
[1642040577834,16.2626,150.01,149.95,24.2942]
[1642040580541,16.2626,150.01,149.95,0.25]
[1642040580738,16.2626,150.01,149.94,2.916]
[1642040580942,16.2626,150.01,149.94,0.25]
[1642040581139,16.2626,150.01,149.93,26.704]
[1642040581939,9.5,150.02,149.94,0.26]
[1642040582139,9.75,150.02,149.94,0.26]
[1642040583339,9.75,150.02,149.95,2.666]
[1642040583543,9.75,150.02,149.96,0.26]
[1642040584841,9.5,150.02,149.96,0.26]
[1642040585042,9.5,150.02,149.96,6.26]
[1642040585241,9.5,150.02,149.96,6.51]
[1642040586243,9.75,150.02,149.96,6.51]
[1642040587847,9.75,150.02,149.96,0.51]
[1642040588248,9.75,150.02,149.96,0.26]
[1642040588446,9.5,150.02,149.96,0.26]
[1642040588749,9.5,150.02,149.96,10.2601]
[1642040588947,9.5,150.02,149.97,2.666]
[1642040589147,9.5,150.02,149.97,2.916]
[1642040589348,9.5,150.02,149.98,0.26]
[1642040592955,9.5,150.05,149.98,0.26]
[1642040593154,10.01,150.05,149.98,0.26]
[1642040593353,10.01,150.05,149.98,22.7786]
[1642040593754,10.01,150.05,149.98,23.0286]
[1642040595055,10.01,150.05,149.98,33.0274]
[1642040597357,10.01,150.05,149.98,23.0286]
[1642040598461,20.01,150.05,149.98,22.7686]
[1642040598660,20.01,150.05,149.98,22.5186]
[1642040598861,2.666,150.04,149.98,22.5186]
[1642040599062,20.01,150.05,149.98,22.5186]
[1642040599266,6.0,150.04,149.98,22.5186]
[1642040599463,0.26,150.03,149.98,22.5186]
[1642040600163,0.26,150.03,149.95,2.666]
[1642040600364,0.26,150.03,149.95,27.4879]
[1642040600869,0.26,150.03,149.95,37.4884]
[1642040601272,0.26,150.03,149.96,0.26]
[1642040601473,0.26,150.03,149.97,2.666]
[1642040601673,0.26,150.03,149.97,2.916]
[1642040603674,0.26,150.03,149.97,27.7068]
[1642040604976,0.26,150.03,149.97,25.0408]
[1642040608998,11.39549653,150.05,149.98,0.26]
[1642040609197,11.39549653,150.05,149.98,2.926]
[1642040609697,11.39549653,150.05,149.98,3.176]
[1642040609899,11.39549653,150.05,149.99,25.88173223]
[1642040610200,9.5,150.05,149.99,0.25]
[1642040610399,0.26,150.04,149.99,0.25]
[1642040610600,9.75,150.05,149.99,0.25]
[1642040611403,9.75,150.05,149.98,28.9815116]
[1642040611907,9.75,150.05,149.98,38.9804116]
[1642040612404,9.75,150.05,149.98,38.4704116]
[1642040612600,0.26,150.04,149.98,38.4704116]
[1642040612800,2.926,150.04,149.98,38.4704116]
[1642040613303,3.176,150.04,149.98,38.4704116]
[1642040613901,0.51,150.04,149.98,38.4704116]
[1642040614201,0.26,150.04,149.98,38.4704116]
[1642040615205,0.26,150.04,149.98,35.8044116]
[1642040620212,0.26,150.04,149.98,9.9989]
[1642040620411,6.26,150.04,149.98,9.9989]
[1642040620813,6.51,150.04,149.98,2.666]
[1642040622813,16.5105,150.04,149.98,2.666]
[1642040624315,0.25,150.04,149.98,2.666]
[1642040624517,0.25,150.04,149.99,0.26]
[1642040624718,34.94569653,150.05,149.98,9.9989]
[1642040625549,0.26,150.04,149.98,9.9989]
[1642040625749,0.26,150.04,149.98,12.6649]
[1642040627951,0.26,150.04,149.98,12.9149]
[1642040628654,0.26,150.04,149.98,2.916]
[1642040633162,10.2605,150.04,149.98,2.666]
[1642040633564,10.5105,150.04,149.98,2.666]
[1642040634668,0.51,150.04,149.98,2.666]
[1642040635065,0.26,150.04,149.98,2.666]
[1642040635766,0.26,150.04,149.97,24.7908]
[1642040635966,9.76,150.04,149.97,25.0408]
[1642040636166,10.01,150.04,149.97,25.0408]
[1642040636366,10.01,150.04,149.97,35.0403]
[1642040637168,10.01,150.04,149.98,2.666]
[1642040637670,10.01,150.04,149.98,2.916]
[1642040638268,9.76,150.04,149.98,2.916]
[1642040638469,10.01,150.04,149.98,0.25]
[1642040638668,10.01,150.04,149.97,35.0403]
[1642040639469,9.76,150.04,149.97,35.0403]
[1642040640673,10.01,150.04,149.97,35.0403]
[1642040642672,9.76,150.04,149.97,35.0403]
[1642040644073,10.01,150.04,149.97,35.0403]
[1642040644899,10.01,150.04,149.98,2.666]
[1642040645302,10.01,150.04,149.98,2.916]
[1642040645805,10.01,150.04,149.98,2.666]
[1642040646203,10.01,150.04,149.97,24.7908]
[1642040646504,20.0107,150.04,149.97,25.0408]
[1642040646904,20.0107,150.04,149.96,4.56747957]
[1642040647104,8.666,150.03,149.95,1.90147957]
[1642040647304,9.5,150.02,149.95,1.90147957]
[1642040647505,8.666,150.01,149.95,1.90147957]
[1642040647706,9.5,150.0,149.95,1.90147957]
[1642040648006,9.76,150.0,149.94,26.8231]
[1642040648205,10.01,150.0,149.94,27.0731]
[1642040648410,10.01,150.0,149.94,26.8231]
[1642040648805,20.0136,150.0,149.94,26.8231]
[1642040649706,20.0136,150.0,149.94,27.0731]
[1642040650507,9.5,150.0,149.94,26.8231]
[1642040650808,9.5,150.0,149.95,6.26]
[1642040651207,9.5,150.0,149.95,6.25]
[1642040651508,9.5,150.0,149.95,6.0]
[1642040651709,9.5,150.0,149.95,6.25]
[1642040652208,9.5,150.0,149.96,2.666]
[1642040652608,9.5,150.0,149.96,2.916]
[1642040654309,9.5,150.0,149.95,8.666]
[1642040654710,9.5,150.0,149.95,8.916]
[1642040657015,9.5,150.0,149.95,2.916]
[1642040658814,9.5,150.0,149.95,12.9168]
[1642040659417,24.5972,150.03,149.96,0.26]